Cogmind - Beta 16.1 @@@ ROGUE MODE // 2026.02.12 @ 23:00:39 Player: Lintence Result: Self-destructed Performance ------------- Evolutions (2) 1000 Regions Visited (3) 600 Robots Destroyed (42) 210 Value Destroyed (954) 954 Prototype IDs (4) 80 Alien Tech Used (0) 0 Bonus (0) 0 TOTAL SCORE: 2844 Bonus ------- None Cogmind --------- Core Integrity 427/550 Matter 265/300 Energy 160/160 System Corruption 0% Temperature Cool (0) Movement Hovering (56) Location -8/Materials Parts ------- > --- POWER (1) -------- Light Nuclear Core > --- PROPULSION (4) --- Hover Unit Airjet > --- UTILITY (4) ------ Hacking Suite Hacking Suite > --- WEAPON (2) ------- Hammer Mining Claw > --- INVENTORY (5) ---- Heavy Ion Engine Heavy Ion Engine Improved Medium Laser Improved Medium Laser Hammer Peak State ------------ > --- POWER ------------ Light Nuclear Core > --- PROPULSION ------- Hover Unit Airjet Airjet Improved VTOL Module > --- UTILITY ---------- Improved Heat Sink Hacking Suite Hacking Suite > --- WEAPON ----------- Improved Medium Laser Improved Medium Laser > --- INVENTORY -------- Heavy Ion Engine Heavy Ion Engine Hover Unit Mining Claw [Rating: 29] Favorites ----------- Power Light Nuclear Core Engine Ion Engine Power Core Light Nuclear Core Propulsion Aluminum Leg Leg Aluminum Leg Wheel Compact Wheel Hover Unit Hover Unit Flight Unit Improved VTOL Module Utility Hacking Suite Device Improved Heat Sink Storage Small Storage Unit Hackware Hacking Suite Protection Hardened Light Armor Plating Weapon Mining Claw Energy Gun Improved Medium Laser Energy Cannon Particle Cannon Ballistic Gun Heavy Assault Rifle Ballistic Cannon Light Cannon Impact Weapon Hammer Slashing Weapon Mining Claw Build | -11 -10 -9 -8 ------- Run | Yrd Mat Mat Mat Slots Evolved 4 | . . 2 2 Power . | . . . . Propulsion 2 | . . . 2 Utility 2 | . . 2 . Weapon . | . . . . Parts Attached 56 | 6 12 25 13 Power 8 | 1 1 5 1 Engine 6 | 1 . 5 . Core 2 | . 1 . 1 Reactor . | . . . . Propulsion 21 | 2 3 8 8 Treads . | . . . . Leg 11 | 2 3 6 . Wheel 2 | . . 2 . Hover 7 | . . . 7 Flight 1 | . . . 1 Utility 9 | 1 1 5 2 Device 3 | . . 3 . Storage 3 | 1 . 1 1 Processor . | . . . . Hackware 2 | . 1 . 1 Protection 1 | . . 1 . Artifact . | . . . . Weapon 18 | 2 7 7 2 Energy Gun 7 | 2 2 2 1 Energy Cannon 4 | . 3 1 . Ballistic Gun 1 | . . 1 . Ballistic Cannon 2 | . 2 . . Launcher . | . . . . Special Weapon . | . . . . Impact Weapon 1 | . . . 1 Slashing Weapon 3 | . . 3 . Piercing Weapon . | . . . . Special Melee Weapon . | . . . . Unidentified Prototypes 4 | . . 3 1 Parts Lost 17 | . 1 10 6 Power 3 | . . 3 . Propulsion 9 | . . 4 5 Utility 3 | . . 2 1 Weapon 2 | . 1 1 . Highest Loss Streak 6 | . 1 6 3 To Critical Strikes . | . . . . Average Backups 6 | . 6 7 3 Power . | . 1 . 1 Propulsion 3 | . 2 4 . Utility . | . . . . Weapon 2 | . 3 2 1 Tool/Special . | . . . . Unused Backups 7 | . 4 1 2 Power 1 | . . 1 . Propulsion 2 | . 1 . 1 Utility . | . . . . Weapon 4 | . 3 . 1 Tool/Special . | . . . . Average Slot Usage (%) 87 | . 95 83 87 Engine 4 | . 8 2 3 Core 5 | . 5 6 5 Leg 18 | . 27 16 . Wheel 1 | . . 2 . Hover 3 | . . . 28 Device 6 | . . 9 8 Storage 11 | . 14 11 8 Hackware 11 | . 11 11 13 Protection 2 | . . 4 . Energy Gun 2 | . 2 . 10 Energy Cannon 4 | . 11 1 . Ballistic Gun 1 | . . 2 . Ballistic Cannon 4 | . 13 . . Slashing Weapon 8 | . . 14 3 Peak Build Rating 29 | 6 13 18 29 Average Rating 13 | 4 10 13 22 On Entrance 9 | . 6 13 17 Avg Prop Armor Cover (%) 5 | . . 5 5 Naked Turns . | . . . . Heaviest Build 26 | 13 18 24 26 Greatest Support 32 | 20 20 32 30 Greatest Overweight (x) 3 | 1 1 3 2 Average Overweight (x) . | . . . . Largest Inventory Capacity 10 | 8 8 10 10 Average Capacity 7 | 7 8 8 7 Most Carried 8 | 2 8 8 8 Average Carried 6 | . 6 7 3 Final Capacity 10 | 8 8 10 5 Final Carried 8 | 2 8 8 5 Class Distribution -------------------- 53% | Mutant 46% | Scavenger-Mutant Dominant Class ---------------- Mutant | -10/Materials Scavenger-Mutant | -9/Materials Scavenger-Mutant | -8/Materials Resources | -11 -10 -9 -8 ----------- Run | Yrd Mat Mat Mat Matter Collected 1142 | 260 373 404 105 Remotely . | . . . . Salvage Created 1473 | . 429 812 232 Parts 95 | . 32 48 15 Haulers Intercepted 5 | . 2 2 1 Recyclers Shooed . | . . . . Parts Field Recycled . | . . . . Retrieved Matter . | . . . . Parts Self-Destructed . | . . . . Prevented . | . . . . Parts Restored . | . . . . Kills | -11 -10 -9 -8 ------- Run | Yrd Mat Mat Mat Combat Hostiles Destroyed 28 | . 11 13 4 Melee 9 | . . 8 1 Guns 4 | . . 1 3 Cannons 15 | . 11 4 . Classes Destroyed 9 | . 6 3 . Worker 2 | . 1 1 . Builder 1 | . . 1 . Hauler 5 | . 2 2 1 Recycler 3 | . 1 2 . Operator 2 | . 1 . 1 Watcher 1 | . . 1 . Swarmer 7 | . 3 3 1 Grunt 19 | . 8 9 2 Sentry 2 | . . 1 1 Best Kill Streak 6 | . 6 3 5 Combat Bots Only 5 | . 5 3 3 Max Kills in Single Turn 1 | . 1 1 1 Gunslinging . | . . . . Exploded . | . . . . Melee 1 | . . 1 1 Uniques/NPCs Destroyed . | . . . . Combat | -11 -10 -9 -8 -------- Run | Yrd Mat Mat Mat Hostile Shots Fired 258 | . 60 133 65 Missed 62 | . 21 22 19 Hits 196 | . 39 111 46 Projectile 196 | . 39 111 46 Critical Strikes 3 | . . 3 . Damage Taken 2245 | . 399 1318 528 Core 436 | . 57 256 123 Absorbed by Shields . | . . . . Core Remaining (%) 71 | 100 77 36 . Volleys Fired 84 | . 44 26 14 Largest 2 | . 2 2 2 Hottest 112 | . 98 98 112 Shots Fired 145 | . 81 36 28 Gun 45 | . . 17 28 Cannon 100 | . 81 19 . Launcher . | . . . . Special . | . . . . Kinetic 75 | . 52 23 . Thermal 70 | . 29 13 28 Explosive . | . . . . Electromagnetic . | . . . . Robot Hit Streak 12 | . 6 4 12 Robot Miss Streak 4 | . 4 3 3 Penetration Max . | . . . . Secondary Targets 1 | . . . 1 Max Gunslinging Chain 1 | . . . 1 Shots Hit Robots 117 | . 46 47 24 Core Hits 47 | . 17 20 10 Critical Kills . | . . . . Critical Parts Destroyed . | . . . . Critical Strikes 4 | . 3 . 1 Burn 1 | . . . 1 Blast 3 | . 3 . . Melee Attacks 65 | . . 49 16 Impact 2 | . . . 2 Slashing 63 | . . 49 14 Piercing . | . . . . Sneak Attacks 8 | . . 8 . Combat Hostiles . | . . . . Follow-up Attacks 4 | . . 2 2 Damage Inflicted 2480 | . 901 1151 428 Guns 507 | . . 149 358 Cannons 1054 | . 897 157 . Explosions . | . . . . Melee 915 | . . 845 70 Ramming 4 | . 4 . . Kinetic 796 | . 612 184 . Thermal 765 | . 285 122 358 Explosive . | . . . . Electromagnetic . | . . . . Impact 43 | . . . 43 Slashing 872 | . . 845 27 Piercing . | . . . . Highest Corruption . | . . . . Average Corruption . | . . . . Corruption Purged . | . . . . Corruption Blocked . | . . . . Overload Shots . | . . . . Overflow Damage 34 | . . 34 . Projectiles . | . . . . Explosions . | . . . . Melee 34 | . . 34 . Knockbacks 6 | . 6 . . Impact . | . . . . Kinetic 5 | . 5 . . Secondary 1 | . 1 . . Self-Inflicted Damage . | . . . . Shots . | . . . . Rammed . | . . . . Targets Rammed 1 | . 1 . . Kicked 1 | . 1 . . Crushed . | . . . . Highest Temperature 364 | . 306 364 105 Average Temperature 83 | . 94 81 37 Received Heat Transfer 1011 | . 123 753 135 Effects 3 | . 1 2 . Shutdowns 1 | . . 1 . Energy Bleed 1 | . 1 . . Matter Decay 1 | . . 1 . Siege Activations . | . . . . Martial Activations . | . . . . Shielding Activations . | . . . . Robots Disrupted . | . . . . Combat Hostiles . | . . . . Robots Corrupted . | . . . . Combat Hostiles . | . . . . Parts Fried . | . . . . Impact Corruptions 1 | . 1 . . Robots Melted . | . . . . Combat Hostiles . | . . . . Parts Melted 4 | . 1 . 3 Heat Transferred 1591 | . 518 222 851 Parts Sabotaged . | . . . . Parts Stolen . | . . . . Parts Stripped . | . . . . Power Chain Reactions . | . . . . Alert | -11 -10 -9 -8 ------- Run | Yrd Mat Mat Mat Maximum Alert Level 1 | . . . 1 Low Security (%) 99 | 100 100 100 95 Level 1 . | . . . 4 Level 2 . | . . . . Level 3 . | . . . . Level 4 . | . . . . Level 5 . | . . . . High Security . | . . . . Max Security . | . . . . Peak Influence 208 | . 152 118 208 Initial 57 | . . 57 . Average 38 | . 26 40 77 Influence Increases 1000 | . 299 383 318 Destroy 0b10 Robot/C 560 | . 220 260 80 Destroy 0b10 Robot/NC 70 | . 25 35 10 Destroy Leader 132 | . 54 66 12 Successful Hack 9 | . . 4 5 Destroy Structure 4 | . . 3 1 Lose Combat Pursuer 225 | . . 15 210 Influence Decreases 822 | . 163 519 140 Entered New Map 79 | . . 79 . Time Decay 593 | . 153 360 80 Lost Part 150 | . 10 80 60 Squads Dispatched 8 | . 4 3 1 Investigation 5 | . 3 2 . Extermination . | . . . . Reinforcement 3 | . 1 1 1 Assault . | . . . . Garrison . | . . . . Intercept . | . . . . Searches Triggered . | . . . . Construction Impeded . | . . . . Haulers Reinforced . | . . . . Active Scanning Responses . | . . . . Cargo Convoy Interrupts . | . . . . Stealth | -11 -10 -9 -8 --------- Run | Yrd Mat Mat Mat Distress Signals 5 | . 1 1 3 Communications Jammed . | . . . . Distress Signals . | . . . . Times Spotted 57 | . 15 21 21 Peak Tracking Total 12 | . 4 4 12 Tactical Retreats 5 | . . 1 4 Traps | -11 -10 -9 -8 ------- Run | Yrd Mat Mat Mat Traps Triggered 8 | . 7 1 . Indirectly . | . . . . Trap Hack Attempts . | . . . . Triggered . | . . . . Disarmed . | . . . . Reprogrammed . | . . . . Reused . | . . . . Traps Extracted . | . . . . Installed . | . . . . Triggered . | . . . . Machines | -11 -10 -9 -8 ---------- Run | Yrd Mat Mat Mat Machines Disabled . | . . . . Max in Single Turn . | . . . . Machines Repaired . | . . . . Machines Dismantled . | . . . . Machines Sabotaged . | . . . . Overloaded Fab Kills . | . . . . Hacking | -11 -10 -9 -8 --------- Run | Yrd Mat Mat Mat Machines Accessed 7 | . 3 3 1 Terminals 6 | . 3 2 1 Fabricators . | . . . . Repair Stations . | . . . . Recycling Units . | . . . . Scanalyzers 1 | . . 1 . Garrison Access . | . . . . Total Hacks 11 | . 5 5 1 Successful 5 | . 2 2 1 Failed 5 | . 3 2 . Catastrophic 2 | . 1 1 . Database Lockouts 1 | . . 1 . Manual 6 | . 4 1 1 Terminals 8 | . 5 2 1 Fabricators . | . . . . Repair Stations . | . . . . Recycling Units . | . . . . Scanalyzers 3 | . . 3 . Garrison Access . | . . . . Terminal Hacks 4 | . 2 1 1 Hauler Manifests 1 | . . 1 . Zone Layout 3 | . 2 . 1 Fabricator Hacks . | . . . . Repair Station Hacks . | . . . . Recycling Unit Hacks . | . . . . Scanalyzer 1 | . . 1 . Retrieve Study 1 | . . 1 . Garrison Access Hacks . | . . . . Unauthorized Hacks . | . . . . Terminals . | . . . . Fabricators . | . . . . Repair Stations . | . . . . Recycling Units . | . . . . Scanalyzers . | . . . . Garrison Access . | . . . . Data Cores Recovered . | . . . . Used . | . . . . Hacking Detections 5 | . 3 2 . Full Trace Events 1 | . . 1 . Feedback Events . | . . . . Feedback Blocked . | . . . . Robot Schematics Acquired . | . . . . Robots Built . | . . . . Authchips . | . . . . Time . | . . . . Total Robot Build Rating . | . . . . Part Schematics Acquired . | . . . . Parts Built . | . . . . Authchips . | . . . . Time . | . . . . Total Part Build Rating . | . . . . Part Studies Acquired 1 | . . 1 . Parts Repaired . | . . . . Time . | . . . . Parts Recycled . | . . . . Recycled Matter . | . . . . Retrieved Matter . | . . . . Retrieved Components . | . . . . Parts Scanalyzed . | . . . . Part Schematics Acquired . | . . . . Parts Damaged . | . . . . Bothacking | -11 -10 -9 -8 ------------ Run | Yrd Mat Mat Mat Used RIF Installer . | . . . . Robots Hacked . | . . . . Non-combat . | . . . . Combat . | . . . . Robot Hacks Applied . | . . . . Relay Couplers Released . | . . . . Fabnet Peak Effective % . | . . . . Robots Rewired . | . . . . Allies Hacked . | . . . . Hacks Repelled . | . . . . Allies | -11 -10 -9 -8 -------- Run | Yrd Mat Mat Mat Total Allies . | . . . . Largest Group . | . . . . Highest-Rated Group . | . . . . Highest-Rated Ally . | . . . . Total Orders . | . . . . Ally Attacks . | . . . . Total Damage . | . . . . Kills . | . . . . Allies Corrupted . | . . . . Allies Melted . | . . . . Intel | -11 -10 -9 -8 ------- Run | Yrd Mat Mat Mat Active Infowar (turns) . | . . . . Robot Analysis Total . | . . . . Derelict Logs Recovered . | . . . . Drone Launches . | . . . . Drone Recoveries . | . . . . Exploration | -11 -10 -9 -8 ------------- Run | Yrd Mat Mat Mat Turns Passed 1983 | 61 614 1090 218 Spaces Moved 1114 | 37 368 536 173 Core 6 | 1 . 5 . Treads . | . . . . Legs 854 | 36 368 450 . Wheels 81 | . . 81 . Hover 171 | . . . 171 Flight 2 | . . . 2 Fastest Speed 48 | 50 120 100 48 Average Speed 125 | 137 120 149 57 Slowest Speed 200 | 190 190 200 175 Overloaded Moves . | . . . . Propulsion Burnouts . | . . . . Robots Hopped . | . . . . Potential Cave-ins . | . . . . Cave-ins Triggered . | . . . . Exploration Rate (%) 30 | 3 61 39 19 Regions Visited 3 Branch Regions . Pre-discovered Areas . | . . . . Known Exits Taken . | . . . . Unknown Exits Taken 3 | 1 1 1 . Scrap Searched . | . . . . Spaces Dug 1 | . . . 1 Terrain Destroyed 1 | . . . 1 Melee 1 | . . . 1 Projectile . | . . . . AOE . | . . . . Terrain Rammed . | . . . . Walls Destroyed . | . . . . Machines Disabled . | . . . . Actions | -11 -10 -9 -8 --------- Run | Yrd Mat Mat Mat Total 1439 | 44 462 697 236 Wait 40 | . . 32 8 Move 1111 | 36 367 535 173 Hop . | . . . . Pick Up 26 | 2 13 9 2 Fast Attach 42 | 6 13 18 5 Attach 15 | . 2 5 8 Detach 9 | . 2 3 4 Swap 14 | . 6 6 2 Drop 39 | . 14 19 6 Fire 84 | . 44 26 14 Melee 58 | . . 44 14 Ram . | . . . . Kick 1 | . 1 . . Crush . | . . . . Escape Stasis . | . . . . Rewire . | . . . . Trap . | . . . . Miscellaneous . | . . . . Route ------- -11/Scrapyard -10/Materials -9/Materials (discovered 2 exits: *Mat / [*Min]) -8/Materials History --------- Turn | Location | Event 19 | -11/Scrapyard | Discovered new exit (range 16) 62 | -11/Scrapyard | Entered Materials 306 | -10/Materials | Build established: Mutant 663 | -10/Materials | Discovered new exit (range 5) 676 | -10/Materials | Entered another Materials area 676 | -9/Materials | Evolved 2 slots: Utility x2 741 | -9/Materials | Central database locked down 925 | -9/Materials | Build established: Scavenger-Mutant 1058 | -9/Materials | Discovered new exit (range 16) 1221 | -9/Materials | Discovered new exit (range 12) 1329 | -9/Materials | Lost 3 parts (1p2u) 1385 | -9/Materials | Core integrity fell below 50% 1431 | -9/Materials | Lost 6 parts (2p4n) 1581 | -9/Materials | Build established: Mutant 1766 | -9/Materials | Entered another Materials area 1766 | -8/Materials | Evolved 2 slots: Propulsion x2 1875 | -8/Materials | Lost 3 parts (3n) 1984 | -8/Materials | Self-destructed Last Messages --------------- 01882_ Acquired Prototype Flight Unit. 01882_ Identified Imp. VTOL Module. 01883_ K-01 Serf cleans the Processing Tank. 01884_ Dropped Med. Storage Unit. 01884_ Acquired 20 matter. 01888_ K-01 Serf collects debris. 01898_ Acquired Airjet. 01902_ Dropped Imp. VTOL Module. 01906_ Acquired Hammer. 01941_ K-01 Serf collects debris. 01944_ W-25 Informer sends out distress signal. 01946_ K-01 Serf collects debris. 01948_ K-01 Serf suffers critical hit (Destroy). 01950_ Hammer follow-up attack on S-10 Pest. 01957_ S-10 Pest destroyed. 01962_ K-01 Serf collects debris. 01974_ Imp. Heat Sink destroyed. 01978_ Airjet destroyed. 01981_ Hover Unit+ destroyed. Map ----- +----------------------------------------------------+ | """ #???# # *** #?? | | ????# + ** #?? | | ????# # ** #?? | | ###########?# ############??? | | ?????# # # ???????? | | ?????# # # """""???????? | | ?????# + # """"""" #???? | | ?????# # # """"""" #???? | | ?????#= # + """"""" #???? | | ?????# !?# # """"""" #???? | | ?????######?# # #???? | | ????????????+ # #???? | | ????????????# ###+#######???? | | ????????????# #?# #??? ????? | | ????????????# #?# #?? "?????? | | ????????????# #?# #??"??????? | | ????????????# ### ## "??????? | | ????????????# # ???????? | | ????????????# +????????? | | ????????????###### #????????? | | ?????????????????# #????????? | | ?????????????????# #????????? | | ?????????????????# #######??? | | ?????????????????#% #??? | | ?????????????????#+######/##?? | | ?????????????????#[ l l @ s#? | | ?????????????????# s #? | | ?????????????????# #? | | ?????????????????# #? | | ?????????????????# #? | | ?????????????????# #? | | ?????????????????####+#######? | | ???????????????????? ???????? | | ???????????????????# ???????? | | ???????????????????+ ???????? | | ???????????????????# ????????? | | ???????????????????# ????????? | | ???????????????????# ????????? | | ???????????????????# ????????? | | ???????????????????#?????????? | | ?????????????????????????????? | | ?????????????????????????????? | | ?????????????????????????????? | | ?????????????????????????????? | | ?????????????????????????????? | | ?????????????????????????????? | | ?????????????????????????????? | | ?????????????????????????????? | | ?????????????????????????????? | | ?????????????????????????????? | +----------------------------------------------------+ Best States ------------- Heat Dissipation 60 Energy Generation 14 Energy Capacity 480 Matter Stores 300 Matter Capacity 300 Sight Range 16 Terrain Scan Density 10 Armor Coverage 150 Evasion (%) 55 Offensive Hacking 20 Item Schematics ----------------- None Robot Schematics ------------------ None Fabricated ------------ Nothing Repaired ---------- Nothing Studied --------- Hover Unit | -9/Materials | Hacked Alien Tech Used ----------------- None Achievements -------------- None Challenges ------------ None Game ------ Seed MetaThunderMegatreads Manual? 0 Play Time 00:24:33 Cumulative 65.7 hours Start 2026.02.12 @ 22:37:26 End 2026.02.12 @ 23:00:39 Sessions 1 Manual Loads 0 Difficulty Rogue Special Mode None Game No. 127 Rogue 127 Adventurer 0 Explorer 0 Win Type - Total 1 Types 1/0/0/0/0/0/0/0/0/0 Lore% 17 Gallery% 32 Achievement% 22 Wizard Run 0 Options --------- Layout 1 ASCII 0 Keyboard 0 Movement Mouse Keybinds 0 Fullscreen 2 Font 20/X11 Map View 50x35 Zoom Use 0% Tactical HUD 1 Map Filters NONE Filters NONE Steam 1 RUN: 6b09d964-ff97-4e1a-aa6e-a0814d54ad34